bitfinex/quotes_SOLUSD_20250621
["timestamp","ask_amount","ask_price","bid_price","bid_amount"]
[1750529142801,0.74,139.21,139.18,27.71441968]
[1750529142974,0.74,139.21,139.18,34.17441968]
[1750529143175,0.74,139.21,139.18,18.64964886]
[1750529143406,0.74,139.21,139.18,25.10964886]
[1750529144268,26.0,139.22,139.18,34.17441968]
[1750529144582,0.73,139.22,139.19,25.14548458]
[1750529146078,0.73,139.22,139.19,40.20719351]
[1750529146280,0.73,139.22,139.19,25.14548458]
[1750529146803,0.73,139.22,139.19,24.39663932]
[1750529147582,26.73,139.22,139.19,24.39663932]
[1750529147795,26.73,139.22,139.19,39.45834825]
[1750529148596,26.73,139.22,139.2,15.06170893]
[1750529149401,26.73,139.22,139.21,7.18339199]
[1750529149803,26.0,139.22,139.21,7.18339199]
[1750529149976,26.0,139.22,139.21,22.24510092]
[1750529150691,26.0,139.22,139.21,13.64339199]
[1750529153198,26.0,139.22,139.2,18.64964886]
[1750529153502,26.0,139.22,139.21,6.46]
[1750529153706,26.0,139.22,139.2,15.06170893]
[1750529154002,26.0,139.22,139.21,6.46]
[1750529154406,26.73,139.22,139.19,25.14548458]
[1750529154703,0.73,139.21,139.2,6.46]
[1750529155273,26.0,139.22,139.21,7.18339199]
[1750529155471,26.73,139.22,139.21,7.18339199]
[1750529156491,0.73,139.22,139.21,7.18339199]
[1750529156692,15.06170893,139.24,139.21,25.14187198]
[1750529156893,0.73,139.22,139.21,25.14187198]
[1750529158817,0.73,139.24,139.21,25.14187198]
[1750529158986,15.79170893,139.24,139.21,25.14187198]
[1750529159185,0.73,139.24,139.21,40.20358091]
[1750529159488,15.06170893,139.27,139.22,33.71135779]
[1750529159690,0.73,139.26,139.22,33.71135779]
[1750529159927,0.73,139.26,139.23,15.06170893]
[1750529160992,26.0,139.25,139.24,7.18184429]
[1750529161529,26.73,139.26,139.24,7.18184429]
[1750529163416,26.0,139.26,139.24,7.18184429]
[1750529163609,0.73,139.28,139.25,33.71135779]
[1750529163916,148.0,139.29,139.26,21.62170893]
[1750529164219,148.0,139.29,139.27,33.71135779]
[1750529164510,0.73,139.34,139.29,18.64964886]
[1750529164713,0.73,139.33,139.3,15.06170893]
[1750529165023,15.06170893,139.34,139.3,15.06170893]
[1750529165024,26.0,139.32,139.31,7.17823558]
[1750529165198,9.02199904,139.35,139.31,34.14582359]
[1750529165397,9.75199904,139.35,139.31,34.14582359]
[1750529165639,0.73,139.37,139.34,9.02199904]
[1750529165789,148.73,139.39,139.36,9.02199904]
[1750529165994,9.02199904,139.4,139.36,9.02199904]
[1750529166192,20.5949291,139.42,139.31,61.01500249]
[1750529166396,9.75199904,139.35,139.32,6.56]
[1750529166599,0.73,139.35,139.32,15.58199904]
[1750529166792,0.73,139.35,139.32,40.2407873]
[1750529167323,0.73,139.35,139.33,7.17720519]
[1750529167626,15.76113844,139.34,139.33,7.17720519]
[1750529167935,0.73,139.34,139.33,7.17720519]
[1750529168230,15.76113844,139.34,139.33,7.17720519]
[1750529168610,0.73,139.34,139.33,7.17720519]
[1750529168907,26.0,139.36,139.33,7.17720519]
[1750529169211,0.73,139.36,139.33,7.17720519]
[1750529169522,15.76113844,139.36,139.33,7.17720519]
[1750529169725,15.76113844,139.36,139.33,25.12021818]
[1750529170207,148.0,139.41,139.33,40.15135662]
[1750529170208,0.73,139.39,139.33,40.15135662]
[1750529170526,0.73,139.37,139.33,40.15135662]
[1750529171032,0.73,139.37,139.34,15.03113844]
[1750529171234,26.0,139.38,139.35,25.11661283]
[1750529171408,41.76113844,139.38,139.35,25.11661283]
[1750529171613,148.0,139.41,139.36,33.6807873]
[1750529171802,26.0,139.38,139.37,15.03113844]
[1750529172002,26.0,139.38,139.37,40.2407873]
[1750529172708,0.73,139.4,139.37,40.2407873]
[1750529173213,0.73,139.4,139.38,7.1746305]
[1750529173933,0.73,139.39,139.38,7.1746305]
[1750529174236,174.69,139.41,139.38,7.1746305]
[1750529174534,174.69,139.41,139.38,25.11120676]
[1750529174724,26.0,139.41,139.38,40.1423452]
[1750529175032,2.2359578,139.44,139.41,18.64964886]
[1750529175232,2.2359578,139.44,139.42,7.17257208]
[1750529175438,1.5459578,139.44,139.42,7.17257208]
[1750529176518,15.72113844,139.43,139.42,7.17257208]
[1750529177007,15.72113844,139.43,139.42,6.17548115]
[1750529177502,0.69,139.43,139.4,7.17360114]
[1750529177727,26.0,139.41,139.4,7.17360114]
[1750529179433,1.5459578,139.44,139.41,18.64964886]
[1750529179638,41.72113844,139.42,139.4,7.17360114]
[1750529181024,41.03113844,139.42,139.4,7.17360114]
[1750529181227,15.72113844,139.41,139.4,7.17360114]
[1750529181614,15.72113844,139.41,139.38,7.1746305]
[1750529182138,0.69,139.41,139.38,25.11120676]
[1750529182334,15.72113844,139.41,139.38,25.11120676]
[1750529182542,0.69,139.41,139.38,25.11120676]
[1750529182724,15.72113844,139.41,139.38,25.11120676]
[1750529183731,15.03113844,139.41,139.38,25.11120676]
[1750529185354,41.03113844,139.42,139.38,25.11120676]
[1750529185641,41.72113844,139.42,139.38,25.11120676]
[1750529185823,41.03113844,139.42,139.38,25.11120676]
[1750529186229,41.72113844,139.42,139.38,25.11120676]
[1750529186553,1.5459578,139.44,139.4,40.13874244]
[1750529186724,2.2359578,139.44,139.4,40.13874244]
[1750529187048,1.5459578,139.44,139.42,15.03113844]
[1750529187547,1.5459578,139.44,139.43,15.03113844]
[1750529187712,1.5459578,139.44,139.43,33.6807873]
[1750529187912,1.5459578,139.44,139.43,40.2207873]
[1750529188741,1.5459578,139.44,139.43,13.71205766]
[1750529188956,26.69,139.42,139.41,7.17308657]
[1750529189156,46.89789513,139.42,139.41,7.17308657]
[1750529189311,41.72113844,139.42,139.41,7.17308657]
[1750529189643,46.89885999,139.42,139.41,7.17308657]
[1750529190341,46.89885999,139.42,139.38,25.11120676]
[1750529190516,15.03113844,139.41,139.38,25.11120676]
[1750529190715,1.0459578,139.44,139.39,18.64964886]
[1750529190943,1.0459578,139.44,139.41,15.03113844]
[1750529191131,1.0459578,139.44,139.41,18.64964886]
[1750529191614,1.0459578,139.44,139.42,15.03113844]
[1750529192014,1.0459578,139.44,139.43,15.03113844]
[1750529192249,1.0459578,139.44,139.43,40.2807873]
[1750529192558,1.0459578,139.44,139.43,46.4108873]
[1750529192717,1.0459578,139.44,139.43,53.58294496]
[1750529194160,1.0459578,139.44,139.43,7.17205766]
[1750529194644,16.76709624,139.44,139.43,7.17205766]
[1750529194862,16.07709624,139.44,139.42,7.17257208]
[1750529195031,20.90645819,139.43,139.42,7.17257208]
[1750529195420,20.21645819,139.43,139.39,7.17411579]
[1750529195643,41.03113844,139.4,139.39,7.17411579]
[1750529195825,26.0,139.4,139.39,7.17411579]
[1750529196350,31.18680011,139.4,139.39,7.17411579]
[1750529196723,46.90793855,139.4,139.37,7.17514529]
[1750529197031,15.03113844,139.39,139.37,7.17514529]
[1750529198136,26.69,139.4,139.37,7.17514529]
[1750529198337,15.03113844,139.39,139.37,7.17514529]
[1750529198845,26.69,139.4,139.37,25.11300853]
[1750529199158,0.69,139.37,139.34,7.17669011]
[1750529199328,15.03113844,139.35,139.34,7.17669011]
[1750529199655,0.69,139.37,139.34,7.17669011]
[1750529199843,0.69,139.39,139.34,7.17669011]
[1750529200045,0.69,139.37,139.34,7.17669011]
[1750529200231,42.53233844,139.4,139.34,7.17669011]
[1750529200552,26.0,139.36,139.33,18.64964886]
[1750529200789,26.0,139.39,139.35,33.6807873]
[1750529200928,41.03113844,139.39,139.35,33.6807873]
[1750529201338,26.0,139.39,139.36,15.03113844]
[1750529201541,41.03113844,139.4,139.36,15.03113844]
[1750529201735,41.03113844,139.4,139.34,18.64964886]
[1750529201937,41.03113844,139.4,139.36,15.03113844]
[1750529202463,41.03113844,139.4,139.37,25.11300853]
[1750529203171,15.72113844,139.41,139.37,40.14414697]
[1750529205393,163.76113844,139.43,139.38,33.6807873]
[1750529205548,163.76113844,139.43,139.39,15.03113844]
[1750529205748,163.03113844,139.43,139.38,18.64964886]
[1750529205966,163.03113844,139.43,139.39,15.03113844]
[1750529206341,163.76113844,139.43,139.39,15.03113844]
[1750529206543,163.76113844,139.43,139.4,25.107604]
[1750529206743,26.0,139.41,139.4,25.107604]
[1750529207269,148.0,139.43,139.4,40.13874244]
[1750529207580,26.0,139.41,139.4,25.107604]
[1750529207884,46.9952523,139.41,139.4,7.17360114]
[1750529208661,46.9952523,139.41,139.36,43.76445942]
[1750529208863,15.03113844,139.39,139.36,43.76445942]
[1750529209089,0.73,139.38,139.36,43.76445942]
[1750529209448,15.03113844,139.39,139.36,43.76445942]
[1750529209677,41.76113844,139.4,139.36,43.76445942]
[1750529209877,20.27437802,139.39,139.36,43.76445942]
[1750529210066,15.03113844,139.39,139.36,43.76445942]
[1750529210549,15.76113844,139.39,139.36,25.11481056]
[1750529210768,41.76113844,139.37,139.36,7.17566016]
[1750529210968,47.00589099,139.37,139.36,7.17566016]
[1750529211943,47.00589099,139.37,139.31,35.89007324]
[1750529211944,26.73,139.35,139.31,7.17823558]
[1750529212171,15.76113844,139.32,139.31,7.17823558]
[1750529212370,41.76113844,139.32,139.31,7.17823558]
[1750529212750,41.76113844,139.32,139.29,25.12743196]
[1750529212950,15.03113844,139.31,139.29,25.12743196]
[1750529213277,15.76113844,139.31,139.29,25.12743196]
[1750529213490,15.03113844,139.3,139.29,25.12743196]
[1750529213848,15.76113844,139.3,139.29,7.17926627]
[1750529217367,15.57182163,139.3,139.29,7.17926627]
[1750529217561,26.0,139.3,139.29,25.12743196]
[1750529217773,163.03113844,139.32,139.29,25.12743196]
[1750529217981,26.0,139.3,139.29,25.12743196]
[1750529219549,163.76113844,139.32,139.29,25.12743196]
[1750529219751,189.76113844,139.32,139.29,25.12743196]
[1750529220461,148.0,139.32,139.3,33.6807873]
[1750529220794,163.03113844,139.35,139.31,15.03113844]
[1750529221076,189.03113844,139.35,139.32,25.12202124]
[1750529221284,174.0,139.35,139.32,25.12202124]
[1750529221461,148.0,139.35,139.33,33.6807873]
[1750529222178,148.0,139.35,139.33,18.64964886]
[1750529222354,148.0,139.35,139.33,33.6807873]
[1750529222978,148.0,139.35,139.34,7.17669011]
[1750529225183,0.73,139.34,139.31,15.03113844]
[1750529225553,148.0,139.35,139.31,33.6807873]
[1750529227159,163.76113844,139.35,139.32,25.12202124]
[1750529227690,148.73,139.35,139.32,25.12202124]
[1750529227887,0.73,139.34,139.32,25.12202124]
[1750529228806,148.0,139.35,139.32,25.12202124]
[1750529228968,148.0,139.35,139.32,40.15315968]
[1750529229880,148.0,139.35,139.33,18.64964886]
[1750529230193,148.0,139.35,139.33,33.6807873]
[1750529230890,148.0,139.35,139.34,33.6807873]
[1750529231299,148.0,139.35,139.34,40.85747741]
[1750529231681,148.0,139.35,139.34,25.82633897]
[1750529231988,148.73,139.35,139.34,7.17669011]
[1750529232293,148.0,139.35,139.34,7.17669011]
[1750529235871,148.0,139.35,139.34,40.85747741]
[1750529236971,26.0,139.39,139.35,18.64964886]
[1750529237166,163.03113844,139.38,139.35,18.64964886]
[1750529237396,163.77113844,139.38,139.35,18.64964886]
[1750529237599,0.74,139.37,139.36,7.17566016]
[1750529238363,15.77113844,139.37,139.36,7.17566016]
[1750529239676,15.03113844,139.37,139.34,17.94172527]
[1750529240009,0.74,139.36,139.34,17.94172527]
[1750529240204,15.77113844,139.36,139.34,17.94172527]
[1750529240668,26.0,139.37,139.33,15.03113844]
[1750529240873,0.74,139.38,139.34,33.6807873]
[1750529241100,41.77113844,139.38,139.34,33.6807873]
[1750529241488,41.03113844,139.38,139.34,33.6807873]
[1750529241676,0.74,139.37,139.34,33.6807873]
[1750529242304,15.03113844,139.36,139.32,105.92176146]
[1750529242471,15.77113844,139.36,139.32,76.04176146]
[1750529242875,0.74,139.36,139.32,76.04176146]
[1750529243072,148.0,139.36,139.32,76.04176146]
[1750529243403,0.74,139.35,139.32,76.04176146]
[1750529243610,0.74,139.33,139.32,25.12202124]
[1750529244199,15.77113844,139.33,139.32,25.12202124]
[1750529244404,15.77113844,139.33,139.32,7.17772035]
[1750529245288,148.0,139.36,139.32,25.12202124]
[1750529245494,148.74,139.35,139.32,25.12202124]
[1750529245696,148.74,139.35,139.32,40.15315968]
[1750529246772,163.77113844,139.35,139.32,25.12202124]
[1750529246972,0.74,139.34,139.32,25.12202124]
[1750529249273,0.74,139.33,139.32,25.12202124]
[1750529249715,15.77113844,139.33,139.32,25.12202124]
[1750529250800,15.77113844,139.34,139.32,25.12202124]
[1750529251297,0.74,139.34,139.32,25.12202124]
[1750529251899,163.77113844,139.35,139.32,25.12202124]
[1750529252597,0.74,139.34,139.32,25.12202124]
[1750529252802,15.77113844,139.34,139.32,25.12202124]
[1750529255189,15.03113844,139.34,139.32,25.12202124]
[1750529255390,15.77113844,139.34,139.32,25.12202124]
[1750529256723,0.74,139.34,139.32,25.12202124]
[1750529257525,163.77113844,139.35,139.32,25.12202124]
[1750529258720,148.74,139.35,139.32,25.12202124]
[1750529258927,163.77113844,139.35,139.32,25.12202124]
[1750529259102,15.03113844,139.34,139.32,25.12202124]
[1750529259418,0.74,139.33,139.32,25.12202124]
[1750529259827,15.03113844,139.34,139.32,25.12202124]
[1750529260312,15.77113844,139.34,139.32,25.12202124]
[1750529260519,148.0,139.33,139.32,25.12202124]
[1750529262353,148.74,139.33,139.32,25.12202124]
[1750529264349,0.69,139.38,139.34,25.11841538]
[1750529264555,154.4609512,139.39,139.34,25.11841538]
[1750529264556,0.69,139.36,139.34,25.11841538]
[1750529264774,35.02107786,139.36,139.34,25.11841538]
[1750529265076,0.69,139.35,139.34,25.11841538]
[1750529267277,0.69,139.35,139.32,25.12202124]
[1750529267443,26.0,139.36,139.32,25.12202124]
[1750529267651,26.69,139.36,139.32,34.1430991]
[1750529267948,0.69,139.35,139.32,34.1430991]
[1750529268746,9.02107786,139.34,139.32,25.12202124]
[1750529269045,9.71107786,139.33,139.32,25.12202124]
[1750529269554,9.71107786,139.33,139.32,17.94430089]
[1750529270276,0.69,139.33,139.32,17.94430089]
[1750529271287,9.71107786,139.34,139.32,17.94430089]
[1750529274476,0.69,139.34,139.32,17.94430089]
[1750529274996,9.71107786,139.34,139.32,17.94430089]
[1750529275197,0.69,139.34,139.32,17.94430089]
[1750529275496,9.71107786,139.34,139.32,17.94430089]
[1750529275722,0.69,139.32,139.31,7.17823558]
[1750529275873,9.02107786,139.33,139.31,7.17823558]
[1750529276485,0.69,139.33,139.31,25.12382455]
[1750529276688,157.02107786,139.34,139.31,25.12382455]
[1750529276689,148.0,139.34,139.32,9.02107786]
[1750529277477,148.0,139.34,139.33,9.02107786]
[1750529277998,148.0,139.34,139.33,16.19828305]
[1750529278703,148.0,139.34,139.33,7.17720519]
[1750529279790,148.0,139.34,139.33,16.19828305]
[1750529280303,148.0,139.34,139.33,7.17720519]
[1750529280473,148.0,139.34,139.33,16.19828305]
[1750529280679,26.0,139.37,139.33,34.14129604]
[1750529280680,26.0,139.36,139.33,34.14129604]
[1750529280895,26.0,139.36,139.35,9.02107786]
[1750529281094,148.0,139.38,139.35,9.02107786]
[1750529281292,174.0,139.38,139.36,9.02107786]
[1750529281691,157.71107786,139.42,139.37,9.02107786]
[1750529281898,157.71107786,139.42,139.34,18.64964886]
[1750529281899,153.97653752,139.41,139.38,9.02107786]
[1750529282089,26.0,139.39,139.38,16.19570836]
[1750529282289,148.0,139.4,139.38,16.19570836]
[1750529282502,148.0,139.4,139.39,9.02107786]
[1750529283113,148.0,139.43,139.4,18.64964886]
[1750529283292,148.0,139.43,139.42,9.02107786]
[1750529283815,148.0,139.43,139.41,9.02107786]
[1750529284006,148.0,139.43,139.42,7.17257208]
[1750529284693,148.0,139.43,139.42,16.19364994]
[1750529287217,1.0459578,139.44,139.42,16.19364994]
[1750529287518,1.0459578,139.44,139.43,27.67072672]
[1750529288906,1.0459578,139.44,139.43,34.84278438]
[1750529292941,1.0459578,139.44,139.43,25.82170652]
[1750529293089,1.0459578,139.44,139.43,34.84278438]
[1750529296617,1.0459578,139.44,139.43,51.53006224]
[1750529296793,148.0,139.51,139.44,18.64964886]
[1750529296994,148.0,139.51,139.5,16.18953664]
[1750529297396,9.02107786,139.54,139.5,16.18953664]
[1750529297397,0.74,139.56,139.51,18.64964886]
[1750529297604,9.02107786,139.56,139.52,9.02107786]
[1750529297808,0.74,139.55,139.51,57.35072672]
[1750529298824,0.74,139.56,139.53,9.02107786]
[1750529299034,0.74,139.56,139.52,9.02107786]
[1750529299223,0.74,139.56,139.53,25.08421127]
[1750529299416,183.02107786,139.57,139.53,25.08421127]
[1750529299734,0.74,139.56,139.53,25.08421127]
[1750529299913,0.74,139.55,139.53,25.08421127]
[1750529301142,35.02107786,139.54,139.49,9.02107786]
[1750529301343,0.74,139.5,139.48,6.52]
[1750529301544,0.74,139.49,139.48,6.52]
[1750529301701,0.74,139.48,139.47,25.0950025]
[1750529302021,9.76107786,139.48,139.47,25.0950025]
[1750529302443,9.76107786,139.48,139.47,7.17000071]
[1750529302824,9.02107786,139.48,139.43,17.93005196]
[1750529303027,9.76107786,139.44,139.43,17.93005196]
[1750529303344,9.76107786,139.44,139.41,25.10580301]
[1750529303934,0.74,139.44,139.41,25.10580301]
[1750529304115,0.74,139.44,139.41,34.12688087]
[1750529304320,0.74,139.46,139.42,18.64964886]
[1750529304513,9.76107786,139.46,139.42,27.67072672]
[1750529304710,0.74,139.46,139.42,27.67072672]
[1750529304914,0.74,139.46,139.42,33.65776503]
[1750529305111,26.0,139.48,139.46,7.17051484]
[1750529305112,0.74,139.48,139.46,7.17051484]
[1750529305339,15.74811617,139.53,139.47,33.65776503]
[1750529305641,15.74811617,139.53,139.48,15.00811617]
[1750529305642,26.0,139.51,139.48,15.00811617]
[1750529306227,15.74811617,139.52,139.48,15.00811617]
[1750529306424,0.74,139.51,139.48,15.00811617]
[1750529306615,0.74,139.51,139.47,33.65776503]
[1750529306817,26.0,139.52,139.48,15.00811617]
[1750529307014,26.74,139.52,139.48,15.00811617]
[1750529307525,26.74,139.52,139.49,25.09140439]
[1750529308152,26.74,139.52,139.49,40.09952056]
[1750529308518,0.74,139.51,139.49,25.09140439]
[1750529308736,26.0,139.51,139.49,25.09140439]
[1750529308933,0.74,139.5,139.49,25.09140439]
[1750529311051,0.74,139.5,139.47,18.64964886]
[1750529311052,0.74,139.5,139.47,25.0950025]
[1750529311255,0.74,139.49,139.47,25.0950025]
[1750529312550,189.00811617,139.51,139.47,25.0950025]
[1750529312729,0.74,139.5,139.47,40.10311867]
[1750529312928,189.00811617,139.51,139.47,40.10311867]
[1750529313134,0.74,139.5,139.47,40.10311867]
[1750529313640,0.74,139.5,139.47,25.0950025]
[1750529315861,189.00811617,139.51,139.47,40.10311867]
[1750529316228,189.74811617,139.51,139.47,40.10311867]
[1750529316531,174.0,139.51,139.48,15.00811617]
[1750529317066,174.0,139.51,139.49,15.00811617]
[1750529317471,148.0,139.51,139.49,15.00811617]
[1750529317648,148.0,139.51,139.5,22.17657495]
[1750529317849,26.0,139.55,139.5,58.74737076]
[1750529318182,15.00811617,139.55,139.5,58.74737076]
[1750529318481,15.74811617,139.55,139.5,58.74737076]
[1750529318785,0.74,139.55,139.51,33.65776503]
[1750529319071,15.74811617,139.55,139.51,33.65776503]
[1750529319286,0.74,139.54,139.51,33.65776503]
[1750529319659,0.74,139.54,139.51,18.64964886]
[1750529320672,0.74,139.54,139.52,7.16743119]
[1750529321980,174.0,139.56,139.52,25.08600917]
[1750529322280,21.00553468,139.55,139.52,25.08600917]
[1750529322481,15.74811617,139.55,139.52,25.08600917]
[1750529322670,5.2603686,139.54,139.52,25.08600917]
[1750529322986,15.74811617,139.55,139.52,25.08600917]
[1750529323496,0.74,139.55,139.52,25.08600917]
[1750529324351,189.75811617,139.56,139.52,25.08600917]
[1750529324552,5.26553028,139.55,139.52,25.08600917]
[1750529324777,5.26553028,139.54,139.52,25.08600917]
[1750529324983,183.743625,139.56,139.52,25.08600917]
[1750529325174,5.27044601,139.55,139.52,25.08600917]
[1750529325374,5.27044601,139.54,139.52,25.08600917]
[1750529325695,183.743625,139.56,139.52,25.08600917]
[1750529325999,5.27013261,139.55,139.52,25.08600917]
[1750529326167,5.27013261,139.54,139.52,34.07963417]
[1750529326368,148.75,139.56,139.52,34.07963417]
[1750529326567,5.26995414,139.55,139.52,34.07963417]
[1750529326875,5.26995414,139.54,139.52,34.07963417]
[1750529327081,148.75,139.56,139.52,34.07963417]
[1750529327393,5.27363796,139.55,139.54,7.16640389]
[1750529329281,5.27363796,139.55,139.53,7.1669175]
[1750529329473,6.02363796,139.54,139.53,7.1669175]
[1750529330567,5.27363796,139.54,139.53,7.1669175]
[1750529331893,5.27363796,139.54,139.52,25.08600917]
[1750529332094,8.993625,139.55,139.52,25.08600917]
[1750529332277,5.28006294,139.54,139.52,25.08600917]
[1750529332470,9.743625,139.55,139.52,25.08600917]
[1750529332676,0.75,139.55,139.52,34.07963417]
[1750529332880,0.75,139.55,139.52,25.08600917]
[1750529333205,5.28077545,139.54,139.52,25.08600917]
[1750529333502,9.743625,139.55,139.52,25.08600917]
[1750529334403,0.75,139.54,139.52,25.08600917]
[1750529335410,156.993625,139.56,139.52,34.07963417]
[1750529335881,148.0,139.56,139.53,8.993625]
[1750529336503,148.0,139.56,139.54,16.16002889]
[1750529337374,148.0,139.56,139.54,7.16640389]
[1750529340607,148.75,139.56,139.54,7.16640389]
[1750529341917,9.743625,139.55,139.54,7.16640389]
[1750529342621,156.993625,139.56,139.54,7.16640389]
[1750529342784,148.75,139.56,139.54,7.16640389]
[1750529342990,148.0,139.56,139.54,7.16640389]
[1750529344422,148.0,139.56,139.54,8.993625]
[1750529345803,0.75,139.54,139.52,13.68721678]
[1750529346116,157.743625,139.53,139.52,7.16721678]
[1750529346508,156.993625,139.53,139.49,25.09126044]
[1750529346815,0.75,139.52,139.49,25.09126044]
[1750529347787,8.993625,139.52,139.49,25.09126044]
[1750529347993,0.75,139.51,139.49,25.09126044]
[1750529350930,8.993625,139.51,139.49,25.09126044]
[1750529351105,0.75,139.5,139.49,25.09126044]
[1750529351292,8.993625,139.51,139.49,17.92228776]
[1750529351496,0.75,139.51,139.49,17.92228776]
[1750529352039,9.743625,139.51,139.49,17.92228776]
[1750529352202,0.75,139.5,139.49,17.92228776]
[1750529355648,8.993625,139.51,139.49,17.92228776]
[1750529355853,9.683625,139.51,139.49,17.92228776]
[1750529356254,0.69,139.5,139.49,17.92228776]
[1750529356820,9.683625,139.52,139.49,17.92228776]
[1750529357135,8.993625,139.52,139.49,17.92228776]
[1750529357343,9.683625,139.51,139.49,17.92228776]
[1750529357735,0.69,139.5,139.49,17.92228776]
[1750529359142,8.993625,139.51,139.49,17.92228776]
[1750529359342,9.683625,139.51,139.49,17.92228776]
[1750529360041,0.69,139.51,139.49,17.92228776]
[1750529361645,0.69,139.5,139.49,17.92228776]
[1750529361847,0.69,139.49,139.48,7.16948666]
[1750529362053,8.993625,139.5,139.48,7.16948666]
[1750529362270,8.993625,139.51,139.48,7.16948666]
[1750529362469,0.69,139.5,139.48,7.16948666]
[1750529364166,0.69,139.49,139.48,7.16948666]
[1750529366348,148.69,139.5,139.48,7.16948666]
[1750529367452,148.0,139.5,139.48,7.16948666]
[1750529367659,0.69,139.49,139.48,7.16948666]
[1750529368883,9.683625,139.49,139.48,7.16948666]
[1750529369086,9.683625,139.49,139.4,42.44727737]
[1750529369087,0.69,139.47,139.42,15.493625]
[1750529369457,0.69,139.45,139.43,25.10200459]
[1750529370978,8.993625,139.46,139.43,25.10200459]
[1750529371166,9.683625,139.46,139.43,25.10200459]
[1750529371478,9.683625,139.45,139.43,7.17205766]
[1750529371678,9.683625,139.44,139.43,7.17205766]
[1750529371899,9.683625,139.44,139.42,6.5]
[1750529371900,0.69,139.43,139.42,7.17248404]
[1750529372054,34.993625,139.43,139.39,7.17411579]
[1750529372265,0.69,139.41,139.39,7.17411579]
[1750529372491,26.0,139.43,139.39,7.17411579]
[1750529372492,9.683625,139.4,139.39,7.17411579]
[1750529372671,9.683625,139.4,139.38,17.93554023]
[1750529372870,0.69,139.4,139.38,17.93554023]
[1750529373587,148.69,139.42,139.38,26.92916523]
[1750529373786,148.69,139.42,139.38,17.93554023]
[1750529373980,0.69,139.41,139.38,17.93554023]
[1750529374204,0.69,139.4,139.38,17.93554023]
[1750529374778,26.69,139.39,139.37,7.17514529]
[1750529374974,0.69,139.38,139.37,7.17514529]
[1750529375174,26.69,139.38,139.37,7.17514529]
[1750529375993,9.683625,139.38,139.37,7.17514529]
[1750529376475,156.993625,139.38,139.36,7.17546354]
[1750529376682,0.69,139.36,139.33,7.17720519]
[1750529376880,9.683625,139.36,139.33,7.17720519]
[1750529377080,0.69,139.36,139.33,7.17720519]
[1750529377398,9.683625,139.35,139.33,25.12021818]
[1750529378098,8.993625,139.35,139.33,25.12021818]
[1750529378407,9.683625,139.34,139.33,7.17720519]
[1750529378617,9.683625,139.34,139.32,7.17772035]
[1750529379076,8.993625,139.34,139.32,7.17772035]
[1750529379282,0.69,139.33,139.32,7.17772035]
[1750529379483,148.69,139.33,139.32,7.17772035]
[1750529380225,26.69,139.3,139.29,7.17926627]
[1750529380381,35.683625,139.3,139.29,7.17926627]
[1750529380576,8.993625,139.32,139.29,25.12743196]
[1750529380790,183.683625,139.32,139.29,25.12743196]
[1750529381615,0.69,139.31,139.29,25.12743196]
[1750529381842,182.993625,139.32,139.29,25.12743196]
[1750529382003,0.69,139.31,139.29,25.12743196]
[1750529382325,8.993625,139.31,139.29,25.12743196]
[1750529382527,0.69,139.3,139.29,25.12743196]
[1750529382736,0.69,139.3,139.29,17.94816569]
[1750529384637,8.993625,139.31,139.29,17.94816569]
[1750529384943,174.0,139.32,139.29,26.94179069]
[1750529385643,174.0,139.32,139.3,8.993625]
[1750529386514,174.74,139.32,139.29,26.94179069]
[1750529386712,0.74,139.31,139.28,8.993625]
[1750529387132,174.74,139.32,139.28,8.993625]
[1750529387938,0.74,139.31,139.28,8.993625]
[1750529388116,0.74,139.3,139.27,8.993625]
[1750529388322,8.993625,139.31,139.27,8.993625]
[1750529388523,26.0,139.29,139.26,34.12647003]
[1750529388729,0.74,139.28,139.26,25.13284503]
[1750529388926,8.993625,139.28,139.26,25.13284503]
[1750529389115,9.733625,139.27,139.26,25.13284503]
[1750529390244,9.733625,139.27,139.26,17.95203217]
[1750529390425,8.993625,139.27,139.25,7.18132854]
[1750529390623,0.74,139.26,139.25,7.18132854]
[1750529391136,26.0,139.26,139.25,7.18132854]
[1750529392023,0.74,139.28,139.25,25.1346499]